bitfinex-derivatives/quotes_ETHF0:USTF0_20230105
["timestamp","ask_amount","ask_price","bid_price","bid_amount"]
[1672880370738,4.5073,1254.5,1254.2,1.1944884]
[1672880372945,1.5,1254.5,1254.2,1.1944884]
[1672880373163,3.0073,1254.4,1254.2,1.1944884]
[1672880377885,4.5073,1254.5,1254.2,1.1944884]
[1672880378307,1.5,1254.5,1254.2,1.1944884]
[1672880378624,4.5073,1254.5,1254.2,1.1944884]
[1672880379989,1.5,1254.5,1254.2,1.1944884]
[1672880380191,4.5073,1254.5,1254.2,1.1944884]
[1672880380618,1.5,1254.5,1254.2,1.1944884]
[1672880380930,4.5073,1254.5,1254.2,1.1944884]
[1672880381143,4.5073,1254.5,1254.2,2.98777814]
[1672880385455,4.5073,1254.5,1254.3,1.1944884]
[1672880385766,4.5073,1254.5,1254.2,2.98777814]
[1672880386187,1.5,1254.5,1254.2,2.98777814]
[1672880386397,4.5073,1254.5,1254.2,2.98777814]
[1672880386609,4.5073,1254.5,1254.3,1.1944884]
[1672880386813,4.5073,1254.5,1254.2,2.98777814]
[1672880387027,4.5073,1254.5,1254.3,1.1944884]
[1672880387337,4.5073,1254.5,1254.2,2.98777814]
[1672880387554,1.5,1254.5,1254.2,2.98777814]
[1672880387760,4.5073,1254.5,1254.2,2.98777814]
[1672880388394,4.5073,1254.5,1254.3,1.1944884]
[1672880388603,4.5073,1254.5,1254.2,2.98777814]
[1672880388808,4.5073,1254.5,1254.3,1.1944884]
[1672880391762,4.5073,1254.5,1254.2,2.98777814]
[1672880392813,4.5073,1254.5,1254.3,1.1944884]
[1672880393017,4.5073,1254.5,1254.2,2.98777814]
[1672880393226,3.0073,1254.4,1254.3,1.1944884]
[1672880393437,3.0073,1254.4,1254.2,2.98777814]
[1672880393647,4.5073,1254.5,1254.2,2.98777814]
[1672880393971,4.5073,1254.5,1254.3,1.1944884]
[1672880394172,4.5073,1254.5,1254.2,2.98777814]
[1672880394377,4.5073,1254.5,1254.3,1.1944884]
[1672880394917,4.5073,1254.5,1254.3,1.18837005]
[1672880395551,4.5073,1254.5,1254.2,1.79328974]
[1672880398171,4.5073,1254.5,1254.1,4.80058974]
[1672880399114,3.0073,1254.3,1254.1,4.80058974]
[1672880402801,3.0073,1254.3,1254.1,1.79328974]
[1672880403851,3.0073,1254.3,1254.0,4.18220236]
[1672880404375,3.0073,1254.3,1254.0,1.79328974]
[1672880404901,3.0073,1254.3,1254.0,4.18220236]
[1672880406999,3.0073,1254.1,1253.9,4.80058974]
[1672880407208,3.0073,1254.1,1253.9,1.79328974]
[1672880407626,2.0,1254.0,1253.9,1.79328974]
[1672880409526,2.0,1254.2,1253.9,9.18950236]
[1672880409734,2.0,1254.2,1253.9,6.80058974]
[1672880409947,2.0,1254.2,1253.9,9.18950236]
[1672880411418,2.0,1254.2,1253.9,7.18950236]
[1672880411830,2.0,1254.2,1253.9,4.80058974]
[1672880414357,3.0073,1254.1,1253.9,4.80058974]
[1672880414677,2.0,1254.0,1253.9,4.80058974]
[1672880417089,2.0,1254.2,1253.9,4.80058974]
[1672880418770,3.0073,1254.3,1254.0,1.79328974]
[1672880418982,19.6467,1254.5,1254.0,1.79328974]
[1672880419195,19.6467,1254.5,1254.1,2.0]
[1672880419402,5.6887,1254.5,1254.1,2.0]
[1672880420566,4.5073,1254.5,1254.1,6.80058974]
[1672880423609,4.5073,1254.5,1254.1,5.0073]
[1672880425613,4.5073,1254.5,1254.1,6.80058974]
[1672880426339,4.5073,1254.5,1254.1,5.0073]
[1672880426556,4.5073,1254.5,1254.1,6.80058974]
[1672880426867,4.5073,1254.5,1254.1,5.0073]
[1672880427597,4.5073,1254.5,1254.1,6.80058974]
[1672880429496,1.5,1254.5,1254.1,3.79328974]
[1672880429811,1.5,1254.5,1254.1,4.80058974]
[1672880432641,3.0073,1254.4,1254.1,4.80058974]
[1672880432858,2.0,1254.3,1254.1,3.0073]
[1672880434329,2.0,1254.3,1254.1,4.80058974]
[1672880438535,1.5,1254.5,1254.1,4.80058974]
[1672880438749,1.5,1254.5,1254.2,2.0]
[1672880441894,1.5,1254.5,1254.2,3.79328974]
[1672880442318,1.5,1254.5,1254.2,6.80058974]
[1672880444207,1.5,1254.5,1254.2,4.80058974]
[1672880444417,1.5,1254.5,1254.2,3.0073]
[1672880444837,1.5,1254.5,1254.2,5.0073]
[1672880445573,1.5,1254.5,1254.3,1.0]
[1672880447148,16.9653,1254.7,1254.3,1.0]
[1672880447361,3.0073,1254.7,1254.4,3.0073]
[1672880447670,3.0073,1254.7,1254.5,2.0]
[1672880448095,2.0,1254.6,1254.5,2.0]
[1672880448413,2.0,1254.6,1254.4,3.0073]
[1672880448826,2.0,1254.6,1254.5,2.0]
[1672880449458,2.0,1254.8,1254.5,2.0]
[1672880449662,2.0,1254.8,1254.4,4.80058974]
[1672880449876,2.0,1254.8,1254.4,3.0073]
[1672880453144,2.0,1254.8,1254.4,10.9543]
[1672880453355,2.0,1254.8,1254.6,3.0073]
[1672880455667,2.0,1254.8,1254.5,12.9543]
[1672880456403,2.0,1254.8,1254.5,9.947]
[1672880456718,2.0,1254.8,1254.5,12.9543]
[1672880459661,2.0,1254.8,1254.6,3.0073]
[1672880466068,6.3047,1254.9,1254.6,3.0073]
[1672880466596,2.0,1254.9,1254.6,3.0073]
[1672880468176,2.0,1254.9,1254.6,3.00128987]
[1672880468494,2.0,1254.9,1254.7,3.0073]
[1672880469329,2.0,1254.9,1254.5,9.947]
[1672880469642,2.0,1254.9,1254.6,3.0073]
[1672880470906,2.0,1254.9,1254.6,10.9543]
[1672880473648,5.0073,1255.0,1254.6,10.9543]
[1672880475325,16.9653,1255.2,1254.8,3.0073]
[1672880475738,2.0,1255.1,1254.8,3.0073]
[1672880475954,2.0,1255.1,1254.9,2.0]
[1672880478374,16.9653,1255.2,1254.9,2.0]
[1672880478685,2.0,1255.1,1254.9,2.0]
[1672880479318,2.0,1255.1,1255.0,3.0073]
[1672880479517,2.0,1255.1,1254.9,2.0]
[1672880481100,5.0073,1255.2,1254.9,2.0]
[1672880481522,2.0,1255.2,1255.0,3.0073]
[1672880483000,2.0,1255.2,1254.9,2.0]
[1672880483413,5.0073,1255.2,1254.9,2.0]
[1672880487727,2.0,1255.2,1254.9,5.0073]
[1672880492033,2.0,1255.2,1254.9,2.0]
[1672880492236,2.0,1255.2,1254.9,5.0073]
[1672880493083,6.264,1255.3,1254.9,5.0073]
[1672880493397,2.0,1255.2,1255.1,3.0073]
[1672880495503,2.0,1255.2,1255.0,3.0073]
[1672880495714,2.0,1255.3,1255.1,1.0]
[1672880497288,2.0,1255.3,1255.0,3.0073]
[1672880497496,2.0,1255.3,1255.1,1.0]
[1672880498861,2.0,1255.3,1255.0,3.0073]
[1672880501385,2.0,1255.3,1255.0,10.9543]
[1672880502962,2.0,1255.3,1255.1,1.0]
[1672880510843,16.9653,1255.4,1255.1,1.0]
[1672880511260,2.0,1255.3,1255.1,1.0]
[1672880512315,16.9653,1255.4,1255.1,1.0]
[1672880512736,13.958,1255.4,1255.1,11.9543]
[1672880515991,2.0,1255.3,1255.1,10.9543]
[1672880516199,2.0,1255.3,1255.1,3.0073]
[1672880518720,2.0,1255.3,1255.0,11.14083091]
[1672880519045,2.0,1255.3,1255.0,14.14813091]
[1672880524295,2.0,1255.3,1255.0,15.94142065]
[1672880524616,13.958,1255.4,1255.0,12.93412065]
[1672880524931,2.0,1255.3,1255.0,15.94142065]
[1672880527657,2.0,1255.3,1255.0,12.93412065]
[1672880527971,2.0,1255.3,1255.0,15.94142065]
[1672880528177,2.0,1255.3,1255.0,12.93412065]
[1672880528392,2.0,1255.3,1255.0,15.94142065]
[1672880529656,2.0,1255.3,1255.0,12.93412065]
[1672880529866,2.0,1255.3,1255.0,15.94142065]
[1672880531338,2.0,1255.3,1255.1,1.19383091]
[1672880532070,2.0,1255.4,1255.1,1.19383091]
[1672880532280,2.0,1255.4,1255.0,15.94142065]
[1672880533228,2.0,1255.4,1255.0,12.93412065]
[1672880533645,2.0,1255.4,1255.1,3.0073]
[1672880533858,2.0,1255.4,1255.2,2.0]
[1672880535231,2.0,1255.4,1255.2,1.99538213]
[1672880535963,2.0,1255.4,1255.2,9.94238213]
[1672880536475,2.0,1255.4,1255.2,1.99538213]
[1672880538481,5.0073,1255.5,1255.2,1.99538213]
[1672880542478,2.0,1255.5,1255.2,1.99538213]
[1672880542685,5.0073,1255.5,1255.2,1.99538213]
[1672880547422,5.0073,1255.5,1255.1,13.14813091]
[1672880548791,5.0073,1255.5,1255.1,7.947]
[1672880549097,5.0073,1255.5,1255.1,9.14083091]
[1672880549309,5.0073,1255.5,1255.1,7.947]
[1672880549521,5.0073,1255.5,1255.1,9.14083091]
[1672880550781,5.0073,1255.5,1255.1,7.947]
[1672880552979,2.0,1255.2,1255.1,9.14083091]
[1672880553190,2.0,1255.2,1255.1,7.947]
[1672880554036,2.0,1255.2,1255.1,9.14083091]
[1672880554561,2.0,1255.2,1255.1,7.947]
[1672880554769,2.0,1255.2,1255.1,9.14083091]
[1672880556553,2.0,1255.3,1255.1,9.14083091]
[1672880559499,2.0,1255.3,1255.1,7.947]
[1672880561069,2.0,1255.3,1255.1,9.14083091]
[1672880561387,3.0073,1255.4,1255.1,9.14083091]
[1672880561598,3.0073,1255.4,1255.2,2.0]
[1672880564119,3.0073,1255.4,1255.2,5.0073]
[1672880564857,2.0,1255.5,1255.2,6.20113091]
[1672880565171,2.0,1255.5,1255.2,5.0073]
[1672880565380,2.0,1255.5,1255.2,2.0]
[1672880566432,5.0073,1255.6,1255.2,2.0]
[1672880566651,5.0073,1255.6,1255.2,4.98712065]
[1672880567372,2.0,1255.6,1255.2,4.98712065]
[1672880567586,2.0,1255.6,1255.2,7.99442065]
[1672880568011,2.0,1255.6,1255.2,6.20113091]
[1672880573376,2.0,1255.6,1255.2,7.99442065]
[1672880573590,2.0,1255.6,1255.2,6.20113091]
[1672880575483,2.0,1255.6,1255.2,3.19383091]
[1672880575905,5.0073,1255.6,1255.2,6.20113091]
[1672880576529,2.0,1255.6,1255.2,3.19383091]
[1672880576737,5.0073,1255.6,1255.2,6.20113091]
[1672880578214,5.0073,1255.6,1255.2,5.0073]
[1672880578527,5.0073,1255.6,1255.2,14.14813091]
[1672880580104,5.0073,1255.6,1255.2,12.9543]
[1672880580305,5.0073,1255.6,1255.2,14.14813091]
[1672880581152,5.0073,1255.6,1255.2,12.9543]
[1672880581359,5.0073,1255.6,1255.2,14.14813091]
[1672880582105,5.0073,1255.6,1255.2,12.9543]
[1672880583691,5.0073,1255.6,1255.2,14.14813091]
[1672880585481,5.0073,1255.6,1255.3,3.0073]
[1672880585701,5.0073,1255.6,1255.4,2.0]
[1672880586577,2.0,1255.6,1255.4,2.0]
[1672880587177,7.1681,1255.7,1255.4,2.0]
[1672880587395,2.0,1255.6,1255.4,2.0]
[1672880587808,2.0,1255.6,1255.3,10.9543]
[1672880588019,2.0,1255.6,1255.4,2.0]
[1672880593579,2.0,1255.6,1255.3,10.9543]
[1672880593899,2.0,1255.6,1255.4,2.0]
[1672880596301,3.0073,1255.7,1255.4,2.0]
[1672880596731,3.0073,1255.7,1255.4,9.947]
[1672880597029,2.0,1255.6,1255.4,9.947]
[1672880597449,3.0073,1255.7,1255.4,9.947]
[1672880597661,2.0,1255.6,1255.4,9.947]
[1672880600508,2.0,1255.6,1255.4,12.9543]
[1672880602293,2.0,1255.6,1255.4,9.947]
[1672880602500,2.0,1255.6,1255.4,12.9543]
[1672880603023,5.0073,1255.8,1255.4,12.9543]
[1672880606393,3.0073,1255.7,1255.4,12.9543]
[1672880606603,2.0,1255.6,1255.4,12.9543]
[1672880606921,2.0,1255.6,1255.4,14.14813091]
[1672880607126,3.0073,1255.7,1255.4,14.14813091]
[1672880607970,3.0073,1255.7,1255.4,12.9543]
[1672880608285,2.0,1255.6,1255.4,12.9543]
[1672880609444,2.0,1255.6,1255.4,14.14813091]
[1672880610073,2.0,1255.6,1255.4,12.9543]
[1672880610280,3.0073,1255.7,1255.4,14.14813091]
[1672880611228,3.0073,1255.7,1255.4,12.9543]
[1672880612067,3.0073,1255.7,1255.4,14.14813091]
[1672880612697,5.0073,1255.8,1255.4,14.14813091]
[1672880612908,5.0073,1255.8,1255.4,12.9543]
[1672880613114,5.0073,1255.8,1255.4,14.14813091]
[1672880617437,2.0,1255.8,1255.4,11.14083091]
[1672880617751,2.0,1255.8,1255.4,9.14083091]
[1672880617958,5.0073,1255.8,1255.4,12.14813091]
[1672880618481,2.0,1255.8,1255.5,2.0]
[1672880618697,5.0073,1255.8,1255.5,2.0]
[1672880619104,5.0073,1255.8,1255.4,12.14813091]
[1672880619529,5.0073,1255.8,1255.5,2.0]
[1672880621744,5.0073,1255.8,1255.4,12.14813091]
[1672880622261,3.0073,1255.6,1255.3,1.19383091]
[1672880622470,2.0,1255.5,1255.3,1.19383091]
[1672880622682,2.0,1255.5,1255.2,7.99442065]
[1672880623420,2.0,1255.5,1255.3,1.19383091]
[1672880627941,5.0073,1255.5,1255.3,1.19383091]
[1672880633617,2.0,1255.5,1255.3,1.19383091]
[1672880633933,5.0073,1255.5,1255.3,1.19383091]
[1672880634670,2.0,1255.5,1255.3,1.19383091]
[1672880634987,5.0073,1255.5,1255.3,1.19383091]
[1672880635509,2.0,1255.5,1255.3,1.19383091]
[1672880635716,5.0073,1255.5,1255.3,1.19383091]
[1672880636768,5.0073,1255.5,1255.3,2.98712065]
[1672880636982,2.0,1255.5,1255.3,2.98712065]
[1672880637924,2.0,1255.5,1255.3,1.19383091]
[1672880640029,5.0073,1255.5,1255.3,1.19383091]
[1672880641927,2.0,1255.5,1255.3,1.19383091]
[1672880642137,5.0073,1255.5,1255.3,1.19383091]
[1672880653903,5.0073,1255.5,1255.2,1.18927368]
[1672880656537,5.0073,1255.5,1255.2,3.18927368]
[1672880657168,3.0073,1255.4,1255.2,1.18927368]
[1672880657378,2.0,1255.3,1255.2,1.18927368]
[1672880657903,3.0073,1255.4,1255.2,7.98986342]
[1672880659901,2.0,1255.5,1255.2,4.98256342]
[1672880660214,5.0073,1255.5,1255.2,4.98256342]
[1672880661995,5.0073,1255.5,1255.2,2.98256342]
[1672880664838,5.0073,1255.5,1255.2,1.18927368]
[1672880671348,5.0073,1255.5,1255.1,3.79328974]
[1672880671880,3.0073,1255.3,1255.1,3.79328974]
[1672880672198,2.0,1255.2,1255.1,1.79328974]
[1672880673344,3.0073,1255.3,1255.1,1.79328974]
[1672880673766,2.0,1255.2,1255.1,1.79328974]
[1672880674511,3.0073,1255.3,1255.1,1.79328974]
[1672880676501,2.0,1255.2,1255.1,1.79328974]
[1672880677132,3.0073,1255.3,1255.1,1.79328974]
[1672880677339,5.0073,1255.5,1255.1,1.79328974]
[1672880678502,3.0073,1255.4,1255.1,1.79328974]
[1672880678713,2.0,1255.3,1255.1,1.79328974]
[1672880689019,5.0073,1255.5,1255.1,1.79328974]
[1672880689652,2.0,1255.5,1255.1,1.79328974]
[1672880689853,5.0073,1255.5,1255.1,4.18220236]
[1672880691748,3.0073,1255.3,1255.1,1.79328974]
[1672880691959,2.0,1255.2,1255.1,1.79328974]
[1672880693329,3.0073,1255.3,1255.1,1.79328974]
[1672880693532,3.0073,1255.3,1255.1,4.18220236]
[1672880694276,3.0073,1255.4,1255.1,4.18220236]
[1672880694485,2.0,1255.3,1255.1,4.18220236]
[1672880695536,2.0,1255.3,1255.2,3.79328974]
[1672880695746,2.0,1255.3,1255.2,1.79328974]
[1672880695953,2.0,1255.3,1255.1,4.18220236]
[1672880696273,2.0,1255.3,1255.1,1.79328974]
[1672880698903,5.0073,1255.3,1255.1,1.79328974]
[1672880700058,2.0,1255.3,1255.1,1.79328974]
[1672880700270,5.0073,1255.3,1255.1,1.79328974]
[1672880705414,2.0,1255.3,1255.1,1.79328974]
[1672880705840,5.0073,1255.3,1255.1,1.79328974]
[1672880707094,5.0073,1255.3,1255.1,4.18220236]
[1672880707725,2.0,1255.3,1255.1,4.18220236]
[1672880710781,1.99255917,1255.3,1255.1,4.18220236]
[1672880710991,1.99255917,1255.3,1255.2,2.0]
[1672880711405,1.99255917,1255.3,1255.1,1.79328974]
[1672880712785,4.99985917,1255.3,1255.1,1.79328974]
[1672880713723,1.99255917,1255.3,1255.1,1.79328974]
[1672880713933,4.99985917,1255.3,1255.1,1.79328974]
[1672880716457,1.99255917,1255.3,1255.1,1.79328974]
[1672880716672,4.99985917,1255.3,1255.1,1.79328974]
[1672880716873,1.99255917,1255.3,1255.1,1.79328974]
[1672880717082,4.99985917,1255.3,1255.1,1.79328974]
[1672880717613,1.99255917,1255.3,1255.1,1.79328974]
[1672880717823,4.99985917,1255.3,1255.1,1.79328974]
[1672880718244,4.99985917,1255.3,1255.0,1.79328974]
[1672880719506,3.0073,1255.1,1254.9,1.79328974]
[1672880719709,2.0,1255.0,1254.9,1.79328974]
[1672880723502,2.0,1255.0,1254.8,2.38891262]
[1672880723503,2.0,1255.0,1254.8,4.18220236]
[1672880723918,2.0,1255.0,1254.8,1.79328974]
[1672880737080,2.0,1255.0,1254.8,3.79328974]
[1672880737813,2.0,1255.0,1254.8,1.79328974]
[1672880740861,2.0,1255.0,1254.8,4.80058974]
[1672880742643,3.0073,1255.1,1254.8,4.80058974]
[1672880742851,4.99985917,1255.3,1254.9,3.79328974]
[1672880743058,4.99985917,1255.3,1254.9,2.0]
[1672880744120,3.0073,1255.2,1254.9,2.0]
[1672880744534,1.99255917,1255.3,1254.9,2.0]
[1672880744752,3.0073,1255.2,1254.9,2.0]
[1672880744962,1.99255917,1255.3,1254.9,2.0]
[1672880745279,3.0073,1255.2,1254.9,3.79328974]
[1672880745591,3.0073,1255.2,1254.8,6.80058974]
[1672880746225,3.0073,1255.2,1254.8,3.79328974]
[1672880748108,3.0073,1255.1,1254.8,3.79328974]
[1672880749069,1.99255917,1255.3,1254.8,3.79328974]
[1672880749269,3.0073,1255.1,1254.8,3.79328974]
[1672880749488,3.0073,1255.1,1254.8,6.18220236]
[1672880750651,3.0073,1255.1,1254.8,3.79328974]
[1672880751805,3.0073,1255.1,1254.8,6.18220236]
[1672880752029,3.0073,1255.1,1254.9,1.79328974]
[1672880752337,3.0073,1255.1,1255.0,2.0]
[1672880752541,3.0073,1255.1,1254.9,2.0]
[1672880753389,3.0073,1255.1,1254.9,3.79328974]
[1672880753600,3.0073,1255.1,1254.9,2.0]
[1672880753802,3.0073,1255.1,1254.9,3.79328974]
[1672880757472,1.99255917,1255.3,1254.9,3.79328974]
[1672880757683,3.0073,1255.1,1254.9,3.79328974]
[1672880757996,3.0073,1255.1,1254.9,6.18220236]
[1672880758210,3.0073,1255.1,1254.9,3.79328974]
[1672880758428,3.0073,1255.1,1254.9,6.18220236]
[1672880758830,3.0073,1255.1,1254.9,3.79328974]
[1672880759045,3.0073,1255.1,1254.9,1.79328974]
[1672880759574,1.99255917,1255.3,1254.9,1.79328974]
[1672880759894,3.0073,1255.1,1254.9,1.79328974]
[1672880761464,1.99255917,1255.3,1254.9,1.79328974]
[1672880761678,3.0073,1255.1,1254.9,1.79328974]
[1672880762517,3.0073,1255.1,1254.9,4.18220236]
[1672880763044,3.0073,1255.1,1254.9,1.79328974]
[1672880763673,3.0073,1255.1,1254.8,6.18220236]
[1672880764616,3.0073,1255.1,1254.9,1.79328974]
[1672880767761,1.99255917,1255.3,1254.9,1.79328974]
[1672880768193,6.0073,1255.1,1254.7,1.79328974]
[1672880768403,6.0073,1255.1,1254.6,4.18220236]
[1672880768404,3.0073,1254.9,1254.6,4.18220236]
[1672880768606,10.9543,1254.9,1254.6,1.79328974]
[1672880768817,10.9543,1254.9,1254.5,4.18220236]
[1672880769023,2.0,1254.8,1254.5,4.18220236]
[1672880769232,2.0,1254.8,1254.5,1.79328974]
[1672880769975,5.0073,1254.8,1254.5,1.79328974]
[1672880773759,5.0073,1254.8,1254.5,4.98571319]
[1672880775656,2.0,1254.8,1254.5,4.98571319]
[1672880775867,5.0073,1254.8,1254.5,4.97781761]
[1672880776565,3.0073,1254.6,1254.4,1.19242345]
[1672880777149,2.0,1254.5,1254.4,1.19242345]
[1672880779356,2.0,1254.5,1254.3,6.19972345]
[1672880781675,3.0073,1254.6,1254.3,6.19972345]
[1672880781875,3.0073,1254.6,1254.4,3.19242345]
[1672880786292,3.0073,1254.7,1254.4,3.19242345]
[1672880786628,2.0,1254.6,1254.4,3.19242345]
[1672880789128,2.0,1254.6,1254.4,2.0]
[1672880789352,2.0,1254.6,1254.4,1.19242345]
[1672880790922,2.0,1254.6,1254.3,6.19972345]
[1672880791852,2.0,1254.6,1254.4,1.19242345]
[1672880792269,2.0,1254.6,1254.3,6.19972345]
[1672880793953,5.0073,1254.6,1254.3,3.19242345]
[1672880796682,5.0073,1254.6,1254.3,1.19242345]
[1672880797734,5.0073,1254.6,1254.3,3.19242345]
[1672880797945,5.0073,1254.6,1254.4,1.19242345]
[1672880800997,2.0,1254.6,1254.4,1.19242345]
[1672880802262,3.0073,1254.7,1254.4,1.19242345]
[1672880803411,3.0073,1254.7,1254.5,1.19242345]
[1672880803941,2.0,1254.8,1254.5,1.19242345]
[1672880804152,5.0073,1254.8,1254.5,1.19242345]
[1672880806149,5.0073,1254.8,1254.5,3.19242345]
[1672880806463,5.0073,1254.8,1254.5,1.19242345]
[1672880807198,2.0,1254.8,1254.5,1.19242345]
[1672880807412,5.0073,1254.8,1254.6,1.19242345]
[1672880808565,5.0073,1254.8,1254.5,1.19242345]
[1672880808774,5.0073,1254.8,1254.5,3.19242345]
[1672880809513,5.0073,1254.8,1254.6,1.19242345]
[1672880810037,5.0073,1254.8,1254.5,3.19242345]
[1672880811614,5.0073,1254.8,1254.6,1.19242345]
[1672880812867,5.0073,1254.8,1254.5,1.19242345]
[1672880817914,3.0073,1254.7,1254.5,1.19242345]
[1672880818230,2.0,1254.6,1254.5,1.19242345]
[1672880821800,2.0,1254.6,1254.4,1.19242345]
[1672880822121,2.0,1254.6,1254.4,3.19242345]
[1672880822333,2.0,1254.6,1254.4,1.19242345]
[1672880823696,3.0073,1254.5,1254.4,1.19242345]
[1672880825687,3.0073,1254.5,1254.3,1.19242345]
[1672880827364,3.0073,1254.5,1254.4,1.19242345]
[1672880828005,3.0073,1254.5,1254.3,1.19242345]
[1672880828317,3.0073,1254.5,1254.4,1.19242345]
[1672880828739,3.0073,1254.5,1254.3,1.19242345]
[1672880830633,3.0073,1254.5,1254.2,1.19242345]
[1672880831685,3.0073,1254.3,1254.2,1.19242345]
[1672880833353,3.0073,1254.3,1254.1,3.07633908]
[1672880833679,2.0,1254.2,1254.1,3.07633908]
[1672880835043,2.0,1254.2,1254.1,1.88391563]
[1672880835358,2.0,1254.2,1254.1,3.07741916]
[1672880835984,2.0,1254.2,1254.1,4.86711062]
[1672880839351,2.0,1254.2,1254.1,3.07741916]
[1672880839562,2.0,1254.2,1254.1,4.86711062]
[1672880840186,2.0,1254.2,1254.1,3.07741916]
[1672880841550,2.0,1254.2,1254.1,1.88391563]
[1672880848489,5.0073,1254.2,1254.1,1.88391563]
[1672880854478,2.0,1254.2,1254.1,1.88391563]
[1672880854799,5.0073,1254.2,1254.1,1.88391563]
[1672880855637,5.0073,1254.2,1254.1,1.87783261]
[1672880858577,2.0,1254.2,1254.1,1.87783261]
[1672880858791,5.0073,1254.2,1254.1,1.87783261]
[1672880859002,2.0,1254.2,1254.1,1.87783261]
[1672880859206,5.0073,1254.2,1254.1,1.87783261]
[1672880864152,2.0,1254.2,1254.1,1.87783261]
[1672880864781,5.0073,1254.2,1254.1,1.87783261]
[1672880864993,2.0,1254.2,1254.1,1.87783261]
[1672880865204,5.0073,1254.2,1254.1,1.87783261]
[1672880873008,2.0,1254.2,1254.1,1.87783261]
[1672880877617,2.0,1254.2,1254.1,3.07133614]
[1672880880026,5.0073,1254.2,1254.1,3.07133614]
[1672880880766,5.0073,1254.2,1254.1,1.87783261]
[1672880884552,3.0073,1254.4,1254.1,3.07133614]
[1672880884763,3.0073,1254.4,1254.2,1.19350353]
[1672880885287,3.0073,1254.4,1254.3,2.0]
[1672880885493,3.0073,1254.4,1254.2,3.19350353]
[1672880885698,2.0,1254.3,1254.2,3.19350353]
[1672880886769,2.0,1254.3,1254.2,1.19350353]
[1672880887183,2.0,1254.3,1254.2,3.19350353]
[1672880887393,3.0073,1254.4,1254.2,6.20080353]
[1672880887919,2.0,1254.3,1254.2,1.19350353]
[1672880888135,2.0,1254.3,1254.2,2.98319499]
[1672880888347,2.0,1254.3,1254.2,1.19350353]
[1672880890872,2.0,1254.4,1254.2,1.78969146]
[1672880891075,2.0,1254.4,1254.3,3.1945495]
[1672880891389,2.0,1254.4,1254.3,2.0]
[1672880891602,2.0,1254.4,1254.2,3.1945495]
[1672880894335,2.0,1254.4,1254.2,1.1945495]
[1672880894863,2.0,1254.4,1254.2,4.98424096]
[1672880895074,2.0,1254.4,1254.2,3.1945495]
[1672880895707,2.0,1254.4,1254.2,1.1945495]
[1672880897396,2.0,1254.4,1254.2,3.1945495]
[1672880897917,2.0,1254.4,1254.2,1.1945495]
[1672880898337,2.0,1254.4,1254.2,3.1945495]
[1672880902642,2.0,1254.4,1254.2,6.2018495]
[1672880902853,2.0,1254.4,1254.2,4.2018495]
[1672880903064,2.0,1254.4,1254.2,6.2018495]
[1672880904011,2.0,1254.4,1254.2,3.1945495]
[1672880904851,2.0,1254.4,1254.2,1.1945495]
[1672880905166,2.0,1254.4,1254.2,3.1945495]
[1672880906427,2.0,1254.4,1254.2,1.1945495]
[1672880908003,2.0,1254.4,1254.1,9.86937357]
[1672880908429,2.0,1254.4,1254.2,3.1945495]
[1672880910321,2.0,1254.4,1254.2,1.1945495]
[1672880911164,2.0,1254.4,1254.2,3.1945495]
[1672880912218,2.0,1254.4,1254.2,1.1945495]
[1672880913902,2.0,1254.4,1254.1,9.86937357]
[1672880915262,2.0,1254.4,1254.1,6.86207357]
[1672880916939,2.0,1254.4,1254.1,4.86207357]
[1672880917150,3.0073,1254.3,1254.1,3.07238211]
[1672880917572,2.0,1254.2,1254.1,3.07238211]
[1672880923886,2.0,1254.2,1254.1,4.86207357]
[1672880925350,2.0,1254.2,1254.1,3.07238211]
[1672880925563,5.0073,1254.2,1254.1,0.00038211]
[1672880925880,1.1814,1254.1,1253.8,2.98470333]
[1672880926083,3.0073,1254.0,1253.8,1.19501187]
[1672880926503,2.0,1253.9,1253.7,4.98470333]
[1672880927134,2.0,1253.9,1253.7,2.98470333]
[1672880927346,2.0,1253.9,1253.7,1.19501187]
[1672880928191,2.0,1253.9,1253.7,2.98470333]
[1672880928404,5.0073,1254.0,1253.8,1.19501187]
[1672880928615,5.0073,1254.0,1253.8,3.19501187]
[1672880929561,5.0073,1254.0,1253.8,2.0]
[1672880929772,2.0,1253.9,1253.8,2.0]
[1672880930630,2.0,1253.9,1253.8,3.19501187]
[1672880930811,2.0,1253.9,1253.8,2.0]
[1672880931036,2.0,1253.9,1253.7,2.98470333]
[1672880931673,2.0,1253.9,1253.7,1.19501187]
[1672880934616,2.0,1253.9,1253.6,7.99200333]
[1672880935449,2.0,1253.9,1253.7,1.19501187]
[1672880935659,2.0,1254.0,1253.7,1.19501187]
[1672880935875,2.0,1254.0,1253.8,2.0]
[1672880940817,2.0,1254.0,1253.7,4.20231187]
[1672880941441,2.0,1254.0,1253.7,1.19501187]
[1672880945647,5.0073,1254.0,1253.7,1.19501187]
[1672880948912,5.0073,1254.0,1253.6,7.99200333]
[1672880949121,5.0073,1254.0,1253.7,1.19501187]
[1672880949528,5.0073,1254.0,1253.6,7.99200333]
[1672880950700,5.0073,1254.0,1253.6,5.99200333]
[1672880951003,5.0073,1254.0,1253.7,2.0]
[1672880952587,5.0073,1254.0,1253.6,3.19501187]
[1672880953005,3.0073,1253.8,1253.6,3.19501187]
[1672880953319,2.0,1253.7,1253.6,3.19501187]
[1672880953743,2.0,1253.7,1253.6,1.19501187]
[1672880954891,2.0,1253.7,1253.5,2.98470333]
[1672880955528,2.0,1253.7,1253.4,2.98470333]